fUST/lending_fUST_20260625
["ID","MTS","AMOUNT","RATE_DAILY","PERIOD"]
[426394242,1782343751000,-3000.0,0.000255,2]
[426394240,1782343751000,-3000.0,0.0002548,2]
[426394233,1782343751000,-3000.0,0.0002541,2]
[426394241,1782343751000,-3000.0,0.0002549,2]
[426394238,1782343751000,-3000.0,0.0002546,2]
[426394237,1782343751000,-3000.0,0.0002545,2]
[426394234,1782343751000,-3000.0,0.0002542,2]
[426394236,1782343751000,-3000.0,0.0002544,2]
[426394235,1782343751000,-3000.0,0.0002543,2]
[426394232,1782343751000,-3000.0,0.000254,2]
[426394247,1782343751000,-476.43420999,0.00025539,2]
[426394239,1782343751000,-3000.0,0.0002547,2]
[426394248,1782343759000,-235.132,0.00024594,2]
[426394251,1782343759000,-559.18769116,0.00025539,2]
[426394249,1782343759000,-82.75348117,0.00025539,2]
[426394252,1782343759000,-559.18769116,0.00025539,2]
[426394253,1782343759000,-155.69724574,0.00025539,2]
[426394250,1782343759000,-559.18769116,0.00025539,2]
[426394255,1782343763000,-9.64417125,0.00025539,2]
[426394254,1782343763000,-403.49044542,0.00025539,2]
[426394301,1782343832000,-1225.7783047,0.00025284,2]
[426394299,1782343832000,-574.0052128,0.00024594,2]
[426394352,1782343838000,-3000.0,0.0002564,2]
[426394355,1782343838000,-3000.0,0.0002566,2]
[426394356,1782343838000,-225.76,0.0002566,3]
[426394357,1782343838000,-3000.0,0.0002567,2]
[426394358,1782343838000,-3000.0,0.0002568,2]
[426394359,1782343838000,-3000.0,0.0002569,2]
[426394354,1782343838000,-677.28,0.0002565,3]
[426394360,1782343838000,-3000.0,0.000257,2]
[426394362,1782343838000,-3000.0,0.0002572,2]
[426394363,1782343838000,-3000.0,0.0002573,2]
[426394365,1782343838000,-3000.0,0.0002575,2]
[426394364,1782343838000,-3000.0,0.0002574,2]
[426394361,1782343838000,-3000.0,0.0002571,2]
[426394353,1782343838000,-3000.0,0.0002565,2]
[426394371,1782343838000,-3000.0,0.0002581,2]
[426394350,1782343838000,-3000.0,0.0002562,2]
[426394349,1782343838000,-3000.0,0.0002561,2]
[426394348,1782343838000,-3000.0,0.000256,2]
[426394347,1782343838000,-3000.0,0.0002559,2]
[426394345,1782343838000,-3000.0,0.0002558,2]
[426394346,1782343838000,-300.0,0.00025588,2]
[426394342,1782343838000,-3000.0,0.0002555,2]
[426394344,1782343838000,-3000.0,0.0002557,2]
[426394341,1782343838000,-300.0,0.00025549,2]
[426394340,1782343838000,-300.0,0.00025548,3]
[426394339,1782343838000,-3000.0,0.0002554,2]
[426394338,1782343838000,-3679.78756368,0.00025284,2]
[426394333,1782343838000,-534.46499768,0.00019999,2]
[426394351,1782343838000,-3000.0,0.0002563,2]
[426394370,1782343838000,-3000.0,0.000258,2]
[426394335,1782343838000,-94.43413162,0.00025284,2]
[426394367,1782343838000,-3000.0,0.0002577,2]
[426394369,1782343838000,-3000.0,0.0002579,2]
[426394398,1782343838000,-3049.4,0.0003013,10]
[426394396,1782343838000,-3594.64267001,0.0003003,2]
[426394397,1782343838000,-381857.12654563,0.0003013,10]
[426394395,1782343838000,-207.78486201,0.0003,2]
[426394393,1782343838000,-197.491177,0.00029527,14]
[426394394,1782343838000,-225.83682432,0.0002984,2]
[426394389,1782343838000,-218.91726237,0.00028972,2]
[426394390,1782343838000,-461.09,0.0002924,5]
[426394392,1782343838000,-160.0,0.0002924,2]
[426394391,1782343838000,-160.0,0.0002924,2]
[426394387,1782343838000,-171.216571,0.00028959,2]
[426394388,1782343838000,-4105.49825647,0.00028972,2]
[426394386,1782343838000,-798.66262962,0.00028914,2]
[426394384,1782343838000,-449.69742659,0.00028914,2]
[426394343,1782343838000,-3000.0,0.0002556,2]
[426394385,1782343838000,-1226.27312488,0.00028914,2]
[426394368,1782343838000,-3000.0,0.0002578,2]
[426394366,1782343838000,-3000.0,0.0002576,2]
[426394372,1782343838000,-3000.0,0.0002582,2]
[426394374,1782343838000,-1165.27977348,0.00026898,3]
[426394373,1782343838000,-4066.807709,0.0002583,2]
[426394377,1782343838000,-171.216571,0.00027177,2]
[426394383,1782343838000,-249.83190366,0.00028914,2]
[426394375,1782343838000,-417.06033566,0.00026898,3]
[426394379,1782343838000,-784.72513854,0.00027872,2]
[426394378,1782343838000,-197.73275326,0.000275,5]
[426394381,1782343838000,-383.21035153,0.00028914,2]
[426394380,1782343838000,-561.9811565,0.00028635,2]
[426394382,1782343838000,-689.77863275,0.00028914,2]
[426394376,1782343838000,-451.52,0.0002703,3]
[426394399,1782343839000,-59655.06080222,0.0003013,10]
[426394426,1782343843000,-973.27240735,0.0003013,10]
[426394423,1782343843000,-1000.0,0.000287,2]
[426394422,1782343843000,-1000.0,0.000282,2]
[426394424,1782343843000,-3198.12932627,0.0003013,10]
[426394425,1782343843000,-3041.56825577,0.0003013,10]
[426394434,1782343846000,-43058.87422593,0.0003013,10]
[426394439,1782343940000,455.17968957,0.00019999,2]
[426394438,1782343940000,500.0,0.00019999,2]
[426394444,1782343998000,361.5,0.00030136,120]
[426394452,1782344218000,160.0,0.00028968,30]
[426394453,1782344242000,254.81442962,0.00028968,30]
[426394459,1782344758000,-171.0,0.00021777,2]
[426394461,1782344758000,-92.11885613,0.00024876,5]
[426394458,1782344758000,-1703.83203545,0.00021559,2]
[426394460,1782344758000,-166.58662532,0.00024132,5]
[426394470,1782344840000,-28.23605623,0.00025578,2]
[426394469,1782344840000,-268.586266,0.00025453,2]
[426394468,1782344840000,-217.1554747,0.000251,2]
[426394467,1782344840000,-166.58662532,0.00024876,5]
[426394484,1782344849000,-236.49850175,0.00025578,2]
[426394494,1782344876000,500.0,0.00030119,30]
[426394495,1782344893000,500.0,0.00030119,30]
[426394500,1782344898000,511.36,0.00030128,30]
[426394499,1782344898000,500.0,0.00030119,30]
[426394518,1782344945000,-7118.3903371,0.00027261,2]
[426394517,1782344945000,-363.24938555,0.00027261,2]
[426394513,1782344945000,-5090.17,0.00026849,2]
[426394516,1782344945000,-5090.17,0.00027123,2]
[426394515,1782344945000,-339.303014,0.00027093,2]
[426394514,1782344945000,-150.2,0.000269,2]
[426394512,1782344945000,-5090.17,0.00026575,2]
[426394506,1782344945000,-150.2,0.000229,2]
[426394511,1782344945000,-5090.17,0.00026301,2]
[426394509,1782344945000,-35.26544202,0.00025578,2]
[426394508,1782344945000,-150.2,0.000249,2]
[426394519,1782344945000,-5090.17,0.00027397,2]
[426394507,1782344945000,-150.2,0.000239,2]
[426394505,1782344945000,-150.2,0.000219,2]
[426394504,1782344945000,-150.2,0.000209,2]
[426394510,1782344945000,-150.2,0.000259,2]
[426394520,1782344945000,-829.29516555,0.00027564,3]
[426394526,1782344945000,-1000.0,0.000282,2]
[426394522,1782344945000,-5090.17,0.00027671,2]
[426394521,1782344945000,-157.32625624,0.00027564,3]
[426394538,1782344945000,-860.28677553,0.00029068,2]
[426394535,1782344945000,-208.10892542,0.00028914,2]
[426394536,1782344945000,-477.93709752,0.00028914,2]
[426394533,1782344945000,-194.29249955,0.00028861,2]
[426394534,1782344945000,-150.2,0.000289,2]
[426394532,1782344945000,-180.32920331,0.00028861,2]
[426394537,1782344945000,-5090.17,0.00029041,2]
[426394531,1782344945000,-250.0,0.00028818,2]
[426394528,1782344945000,-5090.17,0.00028493,2]
[426394530,1782344945000,-5090.17,0.00028767,2]
[426394527,1782344945000,-5090.17,0.00028219,2]
[426394525,1782344945000,-1123.9623133,0.00028015,2]
[426394524,1782344945000,-5090.17,0.00027945,2]
[426394529,1782344945000,-1000.0,0.000287,2]
[426394523,1782344945000,-150.2,0.000279,2]
[426394549,1782344946000,-785.97629576,0.00030127,2]
[426394548,1782344946000,-553.57483358,0.00030127,2]
[426394546,1782344946000,-482.7,0.0003012,3]
[426394547,1782344946000,-270.177,0.00030126,25]
[426394545,1782344946000,-160.89,0.0003012,3]
[426394542,1782344946000,-736.55248088,0.00030029,2]
[426394544,1782344946000,-321.79,0.0003012,3]
[426394540,1782344946000,-5090.17,0.00029589,2]
[426394541,1782344946000,-5090.17,0.00029863,2]
[426394539,1782344946000,-5090.17,0.00029315,2]
[426394550,1782344946000,-785.97629576,0.00030127,2]
[426394543,1782344946000,-500.0,0.00030119,2]
[426394551,1782344946000,-785.97629576,0.00030127,2]
[426394557,1782344946000,-785.97629576,0.00030127,2]
[426394553,1782344946000,-785.97629576,0.00030127,2]
[426394566,1782344946000,-505.42821801,0.00030127,2]
[426394565,1782344946000,-785.97629576,0.00030127,2]
[426394564,1782344946000,-785.97629576,0.00030127,2]
[426394563,1782344946000,-785.97629576,0.00030127,2]
[426394555,1782344946000,-785.97629576,0.00030127,2]
[426394561,1782344946000,-785.97629576,0.00030127,2]
[426394562,1782344946000,-785.97629576,0.00030127,2]
[426394559,1782344946000,-785.97629576,0.00030127,2]
[426394558,1782344946000,-785.97629576,0.00030127,2]
[426394556,1782344946000,-785.97629576,0.00030127,2]
[426394554,1782344946000,-785.97629576,0.00030127,2]
[426394552,1782344946000,-785.97629576,0.00030127,2]
[426394560,1782344946000,-785.97629576,0.00030127,2]
[426394568,1782344962000,-280.54807775,0.00030127,2]
[426394567,1782344962000,-150.2,0.000299,2]
[426394569,1782344962000,-785.97629576,0.00030127,2]
[426394570,1782344962000,-835.99296914,0.00030127,2]
[426394573,1782344962000,-835.99296914,0.00030127,2]
[426394572,1782344962000,-835.99296914,0.00030127,2]
[426394574,1782344962000,-174.38501578,0.00030127,2]
[426394571,1782344962000,-835.99296914,0.00030127,2]
[426394624,1782345033000,-835.99296914,0.00030127,2]
[426394615,1782345033000,-2139.3984,0.000275,3]
[426394617,1782345033000,-6471.5016,0.0003003,2]
[426394622,1782345033000,-835.99296914,0.00030127,2]
[426394620,1782345033000,-1825.51808972,0.0003003,2]
[426394623,1782345033000,-835.99296914,0.00030127,2]
[426394625,1782345033000,-835.99296914,0.00030127,2]
[426394627,1782345033000,-430.59781002,0.00030128,2]
[426394629,1782345033000,-495.65,0.00030129,2]
[426394628,1782345033000,-69.40218998,0.00030128,2]
[426394626,1782345033000,-835.99296914,0.00030127,2]
[426394621,1782345033000,-661.60795336,0.00030127,2]
[426394630,1782345033000,-624.87169007,0.0003013,10]
[426394740,1782345039000,-103590.7863464,0.0003013,10]
[426394811,1782345039000,-182.93333821,0.00033754,2]
[426394815,1782345039000,-261.6649845,0.00033754,2]
[426394813,1782345039000,-222.90343107,0.00033754,2]
[426394817,1782345039000,-184.23721267,0.00033754,2]
[426394798,1782345039000,-168.55,0.0003344,2]
[426394802,1782345039000,-349.3767727,0.00033613,2]
[426394819,1782345039000,-1273.74301583,0.00033754,2]
[426394800,1782345039000,-1527.86931334,0.00033613,2]
[426394805,1782345039000,-182.53292932,0.00033754,2]
[426394809,1782345039000,-208.46015859,0.00033754,2]
[426394821,1782345039000,-172.19704184,0.00033754,2]
[426394829,1782345039000,-150.53599865,0.00033816,2]
[426394825,1782345039000,-177.48217829,0.00033757,2]
[426394796,1782345039000,-159.44,0.00033125,3]
[426394827,1782345039000,-179.64894337,0.00033757,2]
[426394833,1782345039000,-171.82496727,0.00033816,2]
[426394823,1782345039000,-155.04881759,0.00033754,2]
[426394835,1782345039000,-180.55167266,0.00033816,2]
[426394848,1782345039000,-204.33448628,0.00033816,2]
[426394852,1782345039000,-196.87812264,0.00033816,2]
[426394850,1782345039000,-194.36364047,0.00033816,2]
[426394837,1782345039000,-174.12312015,0.00033816,2]
[426394831,1782345039000,-152.52315657,0.00033816,2]
[426394807,1782345039000,-155.04012619,0.00033754,2]
[426394787,1782345039000,-397.51406403,0.000325,120]
[426394840,1782345039000,-194.17384818,0.00033816,2]
[426394744,1782345039000,-1000.0,0.00030136,2]
[426394746,1782345039000,-310.0,0.00030136,2]
[426394748,1782345039000,-1000.0,0.00030136,2]
[426394737,1782345039000,-1268.88875421,0.0003013,10]
[426394742,1782345039000,-166.54,0.0003013,2]
[426394758,1782345039000,-1000.0,0.00030136,2]
[426394756,1782345039000,-1000.0,0.00030136,2]
[426394754,1782345039000,-1000.0,0.00030136,2]
[426394750,1782345039000,-310.0,0.00030136,2]
[426394752,1782345039000,-1000.0,0.00030136,2]
[426394760,1782345039000,-151.0,0.00030137,6]
[426394789,1782345039000,-151.91800977,0.00032783,14]
[426394764,1782345039000,-151.91801025,0.00030137,2]
[426394777,1782345039000,-643.58,0.0003149,3]
[426394773,1782345039000,-151.91800977,0.00031089,9]
[426394775,1782345039000,-177.159752,0.0003141,2]
[426394766,1782345039000,-151.91800977,0.00030243,4]
[426394771,1782345039000,-150.0,0.000309,120]
[426394769,1782345039000,-151.91800977,0.0003056,7]
[426394780,1782345039000,-321.78,0.0003149,3]
[426394783,1782345039000,-151.91800977,0.0003183,12]
[426394785,1782345039000,-150.0,0.000319,120]
[426394791,1782345039000,-74.15485806,0.000329,120]
[426394794,1782345039000,-75.84514194,0.000329,120]
[426394762,1782345039000,-5090.19,0.00030137,2]
[426394854,1782345039000,-191.15334811,0.00033816,2]
[426394846,1782345039000,-212.62246157,0.00033816,2]
[426394842,1782345039000,-160.43582086,0.00033816,2]
[426394923,1782345039000,-354.96435659,0.00034734,2]
[426394919,1782345039000,-344.39408369,0.00034731,2]
[426394917,1782345039000,-1091.77972786,0.00034731,2]
[426394921,1782345039000,-231.53512391,0.00034731,2]
[426394925,1782345039000,-359.29788673,0.00034734,2]
[426394934,1782345039000,-361.10334531,0.00034796,2]
[426394936,1782345039000,-727.51645666,0.00034796,2]
[426394930,1782345039000,-301.07199731,0.00034796,2]
[426394927,1782345039000,-170.4,0.00034792,2]
[426394915,1782345039000,-248.07780255,0.00034731,2]
[426394932,1782345039000,-305.04631313,0.00034796,2]
[426394937,1782345039000,-348.24624031,0.00034796,2]
[426394942,1782345039000,-320.87164171,0.00034796,2]
[426394948,1782345039000,-160.6304694,0.00034796,2]
[426394946,1782345039000,-425.24492314,0.00034796,2]
[426394940,1782345039000,-388.34769636,0.00034796,2]
[426394944,1782345039000,-352.24958039,0.00034796,2]
[426394950,1782345039000,-235.10098392,0.00034796,2]
[426394952,1782345039000,-310.09763517,0.00034796,2]
[426394961,1782345039000,-152.44972968,0.00034796,2]
[426394956,1782345039000,-393.75624528,0.00034796,2]
[426394954,1782345039000,-388.72728094,0.00034796,2]
[426394963,1782345039000,-382.30669622,0.00034796,2]
[426394913,1782345039000,-368.47442533,0.00034731,2]
[426394911,1782345039000,-523.329969,0.00034731,2]
[426394907,1782345039000,-365.86667643,0.00034731,2]
[426394905,1782345039000,-416.92031717,0.00034731,2]
[426394844,1782345039000,-176.1247902,0.00033816,2]
[426394860,1782345039000,-183.80263813,0.00033816,2]
[426394858,1782345039000,-155.8920189,0.00033816,2]
[426394863,1782345039000,-204.38062178,0.00033816,2]
[426394873,1782345039000,-231.41630261,0.00033816,2]
[426394865,1782345039000,-174.7208399,0.00033816,2]
[426394879,1782345039000,-201.09228367,0.00033816,2]
[426394875,1782345039000,-178.2929185,0.00033816,2]
[426394877,1782345039000,-203.55122063,0.00033816,2]
[426394871,1782345039000,-181.17349584,0.00033816,2]
[426394883,1782345039000,-165.38477523,0.00033816,2]
[426394856,1782345039000,-203.17048311,0.00033816,2]
[426394867,1782345039000,-186.85268148,0.00033816,2]
[426394885,1782345039000,-170.10122736,0.00033816,2]
[426394887,1782345039000,-191.47076425,0.00033816,2]
[426394889,1782345039000,-163.01763882,0.00033816,2]
[426394893,1782345039000,-150.0,0.000339,120]
[426394891,1782345039000,-151.0,0.000339,19]
[426394899,1782345039000,-177.159752,0.00034716,2]
[426394895,1782345039000,-151.91800977,0.00033947,17]
[426394897,1782345039000,-355.0,0.00034246,2]
[426394901,1782345039000,-365.06585864,0.00034731,2]
[426394903,1782345039000,-310.08025239,0.00034731,2]
[426394909,1782345039000,-445.80686213,0.00034731,2]
[426394881,1782345039000,-158.42263834,0.00033816,2]
[426394869,1782345039000,-155.55350174,0.00033816,2]
[426395202,1782345040000,-196.25184183,0.00035818,2]
[426395192,1782345040000,-620.16050478,0.00035818,2]
[426395038,1782345040000,-1000.0,0.0003534,2]
[426395030,1782345040000,-310.0,0.0003534,2]
[426395032,1782345040000,-170.0,0.0003534,2]
[426395036,1782345040000,-1000.0,0.0003534,2]
[426395026,1782345040000,-170.0,0.0003534,2]
[426395034,1782345040000,-1000.0,0.0003534,2]
[426395042,1782345040000,-255.92099721,0.00035381,2]
[426395044,1782345040000,-547.59878795,0.00035383,2]
[426395046,1782345040000,-465.12037858,0.00035383,2]
[426395050,1782345040000,-548.80001464,0.00035383,2]
[426395048,1782345040000,-625.38047576,0.00035383,2]
[426395040,1782345040000,-1000.0,0.0003534,2]
[426395052,1782345040000,-668.7102932,0.00035383,2]
[426395054,1782345040000,-784.9949535,0.00035383,2]
[426395056,1782345040000,-552.711638,0.00035383,2]
[426395058,1782345040000,-496.1556051,0.00035383,2]
[426395060,1782345040000,-222.68269118,0.00035383,2]
[426395062,1782345040000,-179.29441835,0.00035383,2]
[426395064,1782345040000,-909.81643988,0.00035383,2]
[426395066,1782345040000,-516.59112553,0.00035383,2]
[426395068,1782345040000,-154.10702326,0.00035383,2]
[426395074,1782345040000,-240.69349499,0.00035383,2]
[426395070,1782345040000,-463.07024782,0.00035383,2]
[426395078,1782345040000,-343.97160628,0.00035386,2]
[426395076,1782345040000,-198.98446875,0.00035386,2]
[426395072,1782345040000,-201.81159195,0.00035383,2]
[426395086,1782345040000,-457.5694697,0.0003545,2]
[426395028,1782345040000,-1000.0,0.0003534,2]
[426395080,1782345040000,-532.44653488,0.00035386,2]
[426395022,1782345040000,-1000.0,0.0003534,2]
[426395020,1782345040000,-151.91800977,0.00035323,19]
[426395204,1782345040000,-358.58883671,0.00035818,2]
[426394965,1782345040000,-311.78403781,0.00034796,2]
[426394967,1782345040000,-200.02293846,0.00034796,2]
[426394973,1782345040000,-408.76124355,0.00034796,2]
[426394969,1782345040000,-367.60527626,0.00034796,2]
[426394970,1782345040000,-165.49808532,0.00034796,2]
[426394974,1782345040000,-154.36456768,0.00034796,2]
[426394976,1782345040000,-153.35949937,0.00034796,2]
[426394978,1782345040000,-349.4416798,0.00034796,2]
[426394981,1782345040000,-249.52504336,0.00034796,2]
[426394983,1782345040000,-311.10700349,0.00034796,2]
[426394985,1782345040000,-362.34699169,0.00034796,2]
[426394986,1782345040000,-462.83260522,0.00034796,2]
[426395000,1782345040000,-340.20245473,0.00034796,2]
[426395005,1782345040000,-326.03527764,0.00034796,2]
[426394989,1782345040000,-356.58583701,0.00034796,2]
[426395002,1782345040000,-382.94152851,0.00034796,2]
[426394990,1782345040000,-407.10244127,0.00034796,2]
[426395007,1782345040000,-406.34096621,0.00034796,2]
[426394992,1782345040000,-402.18456734,0.00034796,2]
[426394998,1782345040000,-330.76955045,0.00034796,2]
[426394995,1782345040000,-164.19746557,0.00034796,2]
[426394996,1782345040000,-316.84527668,0.00034796,2]
[426395010,1782345040000,-150.0,0.000349,120]
[426395011,1782345040000,-430.96,0.00035101,2]
[426395013,1782345040000,-353.125,0.00035101,3]
[426395018,1782345040000,-151.0,0.000353,19]
[426395024,1782345040000,-310.0,0.0003534,2]
[426395082,1782345040000,-538.9468301,0.00035386,2]
[426395016,1782345040000,-370.23,0.00035101,6]
[426395088,1782345040000,-515.4749018,0.0003545,2]
[426395144,1782345040000,-466.66050523,0.0003545,2]
[426395146,1782345040000,-543.52048753,0.0003545,2]
[426395138,1782345040000,-306.71899873,0.0003545,2]
[426395156,1782345040000,-534.87875551,0.0003545,2]
[426395148,1782345040000,-219.62007578,0.0003545,2]
[426395152,1782345040000,-222.12322235,0.0003545,2]
[426395150,1782345040000,-694.24890784,0.0003545,2]
[426395154,1782345040000,-277.16453917,0.0003545,2]
[426395162,1782345040000,-610.6536619,0.0003545,2]
[426395166,1782345040000,-328.39493113,0.0003545,2]
[426395164,1782345040000,-603.27685101,0.0003545,2]
[426395168,1782345040000,-475.26791502,0.0003545,2]
[426395181,1782345040000,-280.0,0.00035793,2]
[426395178,1782345040000,-609.51144932,0.0003545,2]
[426395176,1782345040000,-489.05291646,0.0003545,2]
[426395172,1782345040000,-510.30368209,0.0003545,2]
[426395174,1782345040000,-574.41229276,0.0003545,2]
[426395182,1782345040000,-280.0,0.00035793,2]
[426395186,1782345040000,-1000.0,0.00035793,2]
[426395185,1782345040000,-1000.0,0.00035793,2]
[426395188,1782345040000,-950.0,0.00035793,2]
[426395190,1782345040000,-511.84199443,0.00035815,2]
[426395194,1782345040000,-833.84063435,0.00035818,2]
[426395196,1782345040000,-731.73335285,0.00035818,2]
[426395198,1782345040000,-1046.65993799,0.00035818,2]
[426395200,1782345040000,-736.94885066,0.00035818,2]
[426395084,1782345040000,-451.60799596,0.0003545,2]
[426395142,1782345040000,-499.05008673,0.0003545,2]
[426395140,1782345040000,-524.1625197,0.0003545,2]
[426395170,1782345040000,-496.15432568,0.0003545,2]
[426395137,1782345040000,-308.72913536,0.0003545,2]
[426395090,1782345040000,-541.65501797,0.0003545,2]
[426395092,1782345040000,-485.01097111,0.0003545,2]
[426395098,1782345040000,-273.05936411,0.0003545,2]
[426395096,1782345040000,-411.94815631,0.0003545,2]
[426395102,1782345040000,-582.52154454,0.0003545,2]
[426395094,1782345040000,-398.43902317,0.0003545,2]
[426395100,1782345040000,-522.36936046,0.0003545,2]
[426395106,1782345040000,-196.16340997,0.0003545,2]
[426395104,1782345040000,-402.68454626,0.0003545,2]
[426395110,1782345040000,-528.37437059,0.0003545,2]
[426395114,1782345040000,-321.2609388,0.0003545,2]
[426395112,1782345040000,-637.86738471,0.0003545,2]
[426395116,1782345040000,-465.14645276,0.0003545,2]
[426395118,1782345040000,-295.1115659,0.0003545,2]
[426395108,1782345040000,-220.56588608,0.0003545,2]
[426395120,1782345040000,-583.09092142,0.0003545,2]
[426395133,1782345040000,-192.7141886,0.0003545,2]
[426395132,1782345040000,-551.40791439,0.0003545,2]
[426395136,1782345040000,-271.82724937,0.0003545,2]
[426395130,1782345040000,-400.04587692,0.0003545,2]
[426395135,1782345040000,-613.14186533,0.0003545,2]
[426395131,1782345040000,-281.2993448,0.0003545,2]
[426395129,1782345040000,-467.67605671,0.0003545,2]
[426395124,1782345040000,-212.61695423,0.0003545,2]
[426395122,1782345040000,-590.63436792,0.0003545,2]
[426395128,1782345040000,-573.46004433,0.0003545,2]
[426395126,1782345040000,-304.89945937,0.0003545,2]
[426395134,1782345040000,-330.99617063,0.0003545,2]
[426395295,1782345041000,-441.13177215,0.00035885,2]
[426395287,1782345041000,-776.69539272,0.00035885,2]
[426395291,1782345041000,-392.32681994,0.00035885,2]
[426395289,1782345041000,-604.02681939,0.00035885,2]
[426395293,1782345041000,-641.74328342,0.00035885,2]
[426395285,1782345041000,-696.49248061,0.00035885,2]
[426395268,1782345041000,-151.0,0.00035885,7]
[426395280,1782345041000,-597.65853476,0.00035885,2]
[426395278,1782345041000,-242.50548555,0.00035885,2]
[426395260,1782345041000,-2878.902765,0.00035885,7]
[426395262,1782345041000,-2878.902765,0.00035885,7]
[426395299,1782345041000,-369.22326855,0.00035885,2]
[426395274,1782345041000,-722.20669063,0.00035885,2]
[426395297,1782345041000,-705.30295176,0.00035885,2]
[426395315,1782345041000,-600.06881538,0.00035885,2]
[426395307,1782345041000,-425.23390847,0.00035885,2]
[426395309,1782345041000,-457.34918905,0.00035885,2]
[426395303,1782345041000,-777.45456189,0.00035885,2]
[426395305,1782345041000,-787.51249056,0.00035885,2]
[426395317,1782345041000,-562.59868961,0.00035885,2]
[426395311,1782345041000,-764.61339244,0.00035885,2]
[426395322,1782345041000,-735.21055253,0.00035885,2]
[426395320,1782345041000,-496.49425594,0.00035885,2]
[426395313,1782345041000,-623.56807561,0.00035885,2]
[426395328,1782345041000,-698.8833596,0.00035885,2]
[426395326,1782345041000,-543.65449874,0.00035885,2]
[426395324,1782345041000,-817.52248711,0.00035885,2]
[426395318,1782345041000,-385.4283772,0.00035885,2]
[426395264,1782345041000,-151.0,0.00035885,7]
[426395301,1782345041000,-590.22313181,0.00035885,2]
[426395283,1782345041000,-546.11872821,0.00035885,2]
[426395220,1782345041000,-481.38698997,0.00035818,2]
[426395272,1782345041000,-610.09262627,0.00035885,2]
[426395330,1782345041000,-622.21400698,0.00035885,2]
[426395206,1782345041000,-445.36538236,0.00035818,2]
[426395226,1782345041000,-292.27691608,0.00035878,2]
[426395208,1782345041000,-688.78816737,0.00035818,2]
[426395222,1782345041000,-709.92871318,0.00035821,2]
[426395224,1782345041000,-718.59577347,0.00035821,2]
[426395214,1782345041000,-308.21404652,0.00035818,2]
[426395212,1782345041000,-620.19527034,0.00035818,2]
[426395230,1782345041000,-151.0,0.00035885,7]
[426395210,1782345041000,-727.8531519,0.00035818,2]
[426395216,1782345041000,-423.0706998,0.00035818,2]
[426395228,1782345041000,-222.682715,0.00035885,7]
[426395232,1782345041000,-1367.871748,0.00035885,7]
[426395218,1782345041000,-403.6231839,0.00035818,2]
[426395246,1782345041000,-1621.480723,0.00035885,7]
[426395248,1782345041000,-4893.385955,0.00035885,7]
[426395250,1782345041000,-4893.385955,0.00035885,7]
[426395252,1782345041000,-4893.385955,0.00035885,7]
[426395254,1782345041000,-4893.385955,0.00035885,7]
[426395236,1782345041000,-1367.871748,0.00035885,7]
[426395234,1782345041000,-1367.871748,0.00035885,7]
[426395256,1782345041000,-2878.902765,0.00035885,7]
[426395258,1782345041000,-2878.902765,0.00035885,7]
[426395244,1782345041000,-1621.480723,0.00035885,7]
[426395238,1782345041000,-1367.871748,0.00035885,7]
[426395242,1782345041000,-1621.480723,0.00035885,7]
[426395240,1782345041000,-1621.480723,0.00035885,7]
[426395266,1782345041000,-151.0,0.00035885,7]
[426395276,1782345041000,-195.68696328,0.00035885,2]
[426395270,1782345041000,-602.14399461,0.00035885,2]
[426395332,1782345041000,-188.13903819,0.00035885,2]
[426395282,1782345041000,-617.92223447,0.00035885,2]
[426395336,1782345041000,-439.24015155,0.00035885,2]
[426395460,1782345041000,-891.46459252,0.00036321,2]
[426395408,1782345041000,-1005.0,0.00036287,14]
[426395396,1782345041000,-1005.0,0.00036287,14]
[426395412,1782345041000,-1005.0,0.00036287,14]
[426395410,1782345041000,-1005.0,0.00036287,14]
[426395406,1782345041000,-1005.0,0.00036287,14]
[426395413,1782345041000,-1005.0,0.00036287,14]
[426395415,1782345041000,-1005.0,0.00036287,14]
[426395421,1782345041000,-1005.0,0.00036287,14]